Workbook

Sheet competition (hidden)
A1: month | B1: sites | C1: acres | D1: app type | E1: product | F1: reason | G1: rate/acre | H1: unit | I1: app amount | J1: purchase package | K1: purchase unit | L1: purchase amount | M1: rounded | N1: cost per unit | O1: total cost
A2: january (1-15) | B2: baseball | C2: =IFERROR(VLOOKUP(B2:B97,info!$E$7:$F$15,2,FALSE),"") -> 20.07 | D2: herbicide | E2: xonerate | F2: poa control | G2: 4 | H2: oz | I2: =IFERROR(C2*G2, " ") -> 80.28 | J2: 12 | K2: oz | L2: =IFERROR(I2/J2, "") -> 6.69 | M2: 7 | N2: $410.00 | O2: =N2*M2 -> $2,870.00
C3: =IFERROR(VLOOKUP(B3:B98,info!$E$7:$F$15,2,FALSE),"") ->  | L3: =IFERROR(I3/J3, "") ->  | O3: 0
C4: =IFERROR(VLOOKUP(B4:B99,info!$E$7:$F$15,2,FALSE),"") ->  | O4: 0
C5: =IFERROR(VLOOKUP(B5:B100,info!$E$7:$F$15,2,FALSE),"") ->  | O5: 0
A6: january (16-31) | B6: baseball & softball | C6: =IFERROR(VLOOKUP(B6:B101,info!$E$7:$F$15,2,FALSE),"") -> 25.67 | D6: fertilizer | E6: uflexx 46-0-0 | F6: foliar fert | G6: 20 | H6: lb | I6: 513.4 | J6: 50 | K6: lb | L6: 10.27 | M6: 12 | N6: $15.00 | O6: $180.00
B7: baseball & softball | C7: =IFERROR(VLOOKUP(B7:B102,info!$E$7:$F$15,2,FALSE),"") -> 25.67 | D7: fertilizer | E7: 12-0-0 w/6%fe 3%mn | F7: foliar fert | G7: 80 | H7: oz | I7: 2053.6 | J7: 128 | K7: oz | L7: 16.04 | M7: 16 | N7: $40.00 | O7: $640.00
C8: =IFERROR(VLOOKUP(B8:B103,info!$E$7:$F$15,2,FALSE),"") ->  | O8: 0
C9: =IFERROR(VLOOKUP(B9:B104,info!$E$7:$F$15,2,FALSE),"") ->  | O9: 0
A10: february | B10: baseball | C10: 20.07 | D10: herbicide | E10: xonerate | F10: poa control | G10: 4 | H10: oz | I10: 80.28 | J10: 12 | K10: oz | L10: 6.69 | M10: 7 | N10: $410.00 | O10: $2,870.00
C11: =IFERROR(VLOOKUP(B11:B106,info!$E$7:$F$15,2,FALSE),"") ->  | O11: 0
C12: =IFERROR(VLOOKUP(B12:B107,info!$E$7:$F$15,2,FALSE),"") ->  | O12: 0
C13: =IFERROR(VLOOKUP(B13:B108,info!$E$7:$F$15,2,FALSE),"") ->  | O13: 0
A14: february | B14: baseball & softball | C14: =IFERROR(VLOOKUP(B14:B109,info!$E$7:$F$15,2,FALSE),"") -> 25.67 | D14: fertilizer | E14: umaxx 46-0-0 | F14: fertilizer | G14: 100 | H14: lb | I14: 2567 | J14: 50 | K14: lb | L14: 51.34 | M14: 55 | N14: $15.00 | O14: $825.00
C15: =IFERROR(VLOOKUP(B15:B110,info!$E$7:$F$15,2,FALSE),"") ->  | O15: 0
C16: =IFERROR(VLOOKUP(B16:B111,info!$E$7:$F$15,2,FALSE),"") ->  | O16: 0
C17: =IFERROR(VLOOKUP(B17:B112,info!$E$7:$F$15,2,FALSE),"") ->  | O17: 0
A18: march | B18: all competition | C18: =IFERROR(VLOOKUP(B18:B113,info!$E$7:$F$15,2,FALSE),"") -> 43.08 | D18: herbicide w/fert | E18: 22-0-18 w/oxidiazon | F18: crabgrass prevention | G18: 250 | H18: lb | I18: 10770 | J18: 50 | K18: lb | L18: 215.40 | M18: 220 | N18: $35.00 | O18: $7,700.00
C19: =IFERROR(VLOOKUP(B19:B114,info!$E$7:$F$15,2,FALSE),"") ->  | O19: 0
C20: =IFERROR(VLOOKUP(B20:B115,info!$E$7:$F$15,2,FALSE),"") ->  | O20: 0
C21: =IFERROR(VLOOKUP(B21:B116,info!$E$7:$F$15,2,FALSE),"") ->  | O21: 0
A22: march | B22: baseball & softball | C22: =IFERROR(VLOOKUP(B22:B117,info!$E$7:$F$15,2,FALSE),"") -> 25.67 | D22: herbicide | E22: trimec | F22: broadleaf control | G22: 40 | H22: oz | I22: 1026.8 | J22: 128 | K22: oz | L22: 8.02 | M22: 10 | N22: $25.00 | O22: $250.00
C23: =IFERROR(VLOOKUP(B23:B118,info!$E$7:$F$15,2,FALSE),"") ->  | O23: 0
C24: =IFERROR(VLOOKUP(B24:B119,info!$E$7:$F$15,2,FALSE),"") ->  | O24: 0
C25: =IFERROR(VLOOKUP(B25:B120,info!$E$7:$F$15,2,FALSE),"") ->  | O25: 0
A26: april | C26: =IFERROR(VLOOKUP(B26:B121,info!$E$7:$F$15,2,FALSE),"") ->  | O26: 0
C27: =IFERROR(VLOOKUP(B27:B122,info!$E$7:$F$15,2,FALSE),"") ->  | O27: 0
C28: =IFERROR(VLOOKUP(B28:B123,info!$E$7:$F$15,2,FALSE),"") ->  | O28: 0
C29: =IFERROR(VLOOKUP(B29:B124,info!$E$7:$F$15,2,FALSE),"") ->  | O29: 0
A30: april | B30: all competition | C30: =IFERROR(VLOOKUP(B30:B125,info!$E$7:$F$15,2,FALSE),"") -> 43.08 | D30: fertilizer | E30: umaxx 46-0-0 | F30: fertilizer | G30: 100 | H30: lb | I30: 4308 | J30: 50 | K30: lb | L30: 86.16 | M30: 100 | N30: $30.00 | O30: $3,000.00
C31: =IFERROR(VLOOKUP(B31:B126,info!$E$7:$F$15,2,FALSE),"") ->  | O31: 0
C32: =IFERROR(VLOOKUP(B32:B127,info!$E$7:$F$15,2,FALSE),"") ->  | O32: 0
C33: =IFERROR(VLOOKUP(B33:B128,info!$E$7:$F$15,2,FALSE),"") ->  | O33: 0
A34: may | B34: all competition | C34: =IFERROR(VLOOKUP(B34:B129,info!$E$7:$F$15,2,FALSE),"") -> 43.08 | D34: insecticide | E34: fipronil | F34: fire ants / mole crickets | G34: 80 | H34: lb | I34: 3446.4 | J34: 30 | K34: lb | L34: 114.88 | M34: 120 | N34: $59.50 | O34: $7,140.00
C35: =IFERROR(VLOOKUP(B35:B130,info!$E$7:$F$15,2,FALSE),"") ->  | O35: 0
C36: =IFERROR(VLOOKUP(B36:B131,info!$E$7:$F$15,2,FALSE),"") ->  | O36: 0
C37: =IFERROR(VLOOKUP(B37:B132,info!$E$7:$F$15,2,FALSE),"") ->  | O37: 0
A38: may | B38: all competition | C38: =IFERROR(VLOOKUP(B38:B133,info!$E$7:$F$15,2,FALSE),"") -> 43.08 | D38: herbicide | E38: certainty | F38: ryegrass / nutsedge | G38: 1.25 | H38: oz | I38: 53.85 | J38: 12.5 | K38: oz | L38: 4.31 | M38: 5 | N38: $850.00 | O38: $4,250.00
C39: =IFERROR(VLOOKUP(B39:B134,info!$E$7:$F$15,2,FALSE),"") ->  | O39: 0
C40: =IFERROR(VLOOKUP(B40:B135,info!$E$7:$F$15,2,FALSE),"") ->  | O40: 0
C41: =IFERROR(VLOOKUP(B41:B136,info!$E$7:$F$15,2,FALSE),"") ->  | O41: 0
A42: june | B42: all competition | C42: =IFERROR(VLOOKUP(B42:B137,info!$E$7:$F$15,2,FALSE),"") -> 43.08 | D42: aerification | E42: sand | F42: dilute thatch | G42: 33 | H42: ton | I42: 1421.64 | J42: 22 | K42: ton | L42: 64.62 | M42: 66 | N42: $450.00 | O42: $29,700.00
C43: =IFERROR(VLOOKUP(B43:B138,info!$E$7:$F$15,2,FALSE),"") ->  | O43: 0
C44: =IFERROR(VLOOKUP(B44:B139,info!$E$7:$F$15,2,FALSE),"") ->  | O44: 0
C45: =IFERROR(VLOOKUP(B45:B140,info!$E$7:$F$15,2,FALSE),"") ->  | O45: 0
A46: june | B46: all competition | C46: =IFERROR(VLOOKUP(B46:B141,info!$E$7:$F$15,2,FALSE),"") -> 43.08 | D46: insecticide w/fert | E46: 21-14-14 w/acelepryn | F46: armyworm control | G46: 300 | H46: lb | I46: 12924 | J46: 50 | K46: lb | L46: 258.48 | M46: 275 | N46: $40.00 | O46: $11,000.00
C47: =IFERROR(VLOOKUP(B47:B142,info!$E$7:$F$15,2,FALSE),"") ->  | O47: 0
C48: =IFERROR(VLOOKUP(B48:B143,info!$E$7:$F$15,2,FALSE),"") ->  | O48: 0
C49: =IFERROR(VLOOKUP(B49:B144,info!$E$7:$F$15,2,FALSE),"") ->  | O49: 0
A50: july | B50: all competition | C50: 43.08 | D50: herbicide | E50: trimec | F50: broadleaf control | G50: 40 | H50: oz | I50: 1723.2 | J50: 128 | K50: oz | L50: 13.46 | M50: 15 | N50: $25.00 | O50: $375.00
B51: all competition | C51: 43.08 | D51: herbicide | E51: msma | F51: grassy weeds | G51: 40 | H51: oz | I51: 1723.2 | J51: 128 | K51: oz | L51: 13.46 | M51: 15 | N51: $25.00 | O51: $375.00
C52: =IFERROR(VLOOKUP(B52:B147,info!$E$7:$F$15,2,FALSE),"") ->  | O52: 0
C53: =IFERROR(VLOOKUP(B53:B148,info!$E$7:$F$15,2,FALSE),"") ->  | O53: 0
A54: july | B54: all competition | C54: =IFERROR(VLOOKUP(B54:B149,info!$E$7:$F$15,2,FALSE),"") -> 43.08 | D54: growth regulator | E54: trinexepac-ethyl | F54: bermuda regulation | G54: 10 | H54: oz | I54: 430.8 | J54: 128 | K54: oz | L54: 3.37 | M54: 4 | N54: $300.00 | O54: $1,200.00
C55: =IFERROR(VLOOKUP(B55:B150,info!$E$7:$F$15,2,FALSE),"") ->  | O55: 0
C56: =IFERROR(VLOOKUP(B56:B151,info!$E$7:$F$15,2,FALSE),"") ->  | O56: 0
C57: =IFERROR(VLOOKUP(B57:B152,info!$E$7:$F$15,2,FALSE),"") ->  | O57: 0
A58: august | B58: all competition | C58: 43.08 | D58: herbicide | E58: certainty | F58: nutsedge | G58: 1.25 | H58: oz | I58: 53.85 | J58: 12.5 | K58: oz | L58: 4.31 | M58: 5 | N58: $850.00 | O58: $4,250.00
B59: all competition | C59: 43.08 | D59: herbicide | E59: msma | F59: grassy weeds | G59: 80 | H59: oz | I59: 3446.4 | J59: 128 | K59: oz | L59: 26.93 | M59: 30 | N59: $25.00 | O59: $750.00
C60: =IFERROR(VLOOKUP(B60:B155,info!$E$7:$F$15,2,FALSE),"") ->  | O60: 0
C61: =IFERROR(VLOOKUP(B61:B156,info!$E$7:$F$15,2,FALSE),"") ->  | O61: 0
A62: august | B62: all competition | C62: =IFERROR(VLOOKUP(B62:B157,info!$E$7:$F$15,2,FALSE),"") -> 43.08 | D62: growth regulator | E62: trinexepac-ethyl | F62: bermuda regulation | G62: 10 | H62: oz | I62: 430.8 | J62: 128 | K62: oz | L62: 3.37 | M62: 4 | N62: $300.00 | O62: $1,200.00
C63: =IFERROR(VLOOKUP(B63:B158,info!$E$7:$F$15,2,FALSE),"") ->  | O63: 0
C64: =IFERROR(VLOOKUP(B64:B159,info!$E$7:$F$15,2,FALSE),"") ->  | O64: 0
C65: =IFERROR(VLOOKUP(B65:B160,info!$E$7:$F$15,2,FALSE),"") ->  | O65: 0
A66: september | C66: =IFERROR(VLOOKUP(B66:B161,info!$E$7:$F$15,2,FALSE),"") ->  | I66: =IFERROR(C66*G66, " ") ->  | O66: =N66*M66 -> 0
C67: =IFERROR(VLOOKUP(B67:B162,info!$E$7:$F$15,2,FALSE),"") ->  | L67: =IFERROR(I67/J67, "") ->  | O67: 0
C68: =IFERROR(VLOOKUP(B68:B163,info!$E$7:$F$15,2,FALSE),"") ->  | O68: 0
C69: =IFERROR(VLOOKUP(B69:B164,info!$E$7:$F$15,2,FALSE),"") ->  | O69: 0
A70: september | B70: football | C70: =IFERROR(VLOOKUP(B70:B165,info!$E$7:$F$15,2,FALSE),"") -> 17.41 | D70: herbicide | E70: specticle | F70: winter weed prevention | G70: 6.5 | H70: oz | I70: 113.165 | J70: 18 | K70: oz | L70: 6.29 | M70: 7 | N70: $241.00 | O70: $1,687.00
C71: =IFERROR(VLOOKUP(B71:B166,info!$E$7:$F$15,2,FALSE),"") ->  | O71: 0
C72: =IFERROR(VLOOKUP(B72:B167,info!$E$7:$F$15,2,FALSE),"") ->  | O72: 0
C73: =IFERROR(VLOOKUP(B73:B168,info!$E$7:$F$15,2,FALSE),"") ->  | O73: 0
A74: october | B74: all competition | C74: =IFERROR(VLOOKUP(B74:B169,info!$E$7:$F$15,2,FALSE),"") -> 43.08 | D74: growth regulator | E74: trinexepac-ethyl | F74: pre-overseed | G74: 20 | H74: oz | I74: 861.6 | J74: 128 | K74: oz | L74: 6.73 | M74: 7 | N74: $300.00 | O74: $2,100.00
B75: softball | C75: =IFERROR(VLOOKUP(B75:B170,info!$E$7:$F$15,2,FALSE),"") -> 5.6 | D75: herbicide | E75: foramsulfuron | F75: pre-overseed, poa control | G75: 16 | H75: oz | I75: 89.6 | J75: 87 | K75: oz | L75: 1.03 | M75: 2 | N75: $250.00 | O75: $500.00
C76: =IFERROR(VLOOKUP(B76:B171,info!$E$7:$F$15,2,FALSE),"") ->  | O76: 0
C77: =IFERROR(VLOOKUP(B77:B172,info!$E$7:$F$15,2,FALSE),"") ->  | O77: 0
A78: october | B78: baseball & softball | C78: =IFERROR(VLOOKUP(B78:B173,info!$E$7:$F$15,2,FALSE),"") -> 25.67 | D78: over-seed | E78: ryegrass | F78: overseed | G78: 400 | H78: lb | I78: 10268 | J78: 50 | K78: lb | L78: 205.36 | M78: 375 | N78: $75.00 | O78: $28,125.00
C79: =IFERROR(VLOOKUP(B79:B174,info!$E$7:$F$15,2,FALSE),"") ->  | O79: 0
C80: =IFERROR(VLOOKUP(B80:B175,info!$E$7:$F$15,2,FALSE),"") ->  | O80: 0
C81: =IFERROR(VLOOKUP(B81:B176,info!$E$7:$F$15,2,FALSE),"") ->  | O81: 0
A82: november | C82: =IFERROR(VLOOKUP(B82:B177,info!$E$7:$F$15,2,FALSE),"") ->  | O82: 0
C83: =IFERROR(VLOOKUP(B83:B178,info!$E$7:$F$15,2,FALSE),"") ->  | O83: 0
C84: =IFERROR(VLOOKUP(B84:B179,info!$E$7:$F$15,2,FALSE),"") ->  | O84: 0
C85: =IFERROR(VLOOKUP(B85:B180,info!$E$7:$F$15,2,FALSE),"") ->  | O85: 0
A86: november | B86: baseball & softball | C86: =IFERROR(VLOOKUP(B86:B181,info!$E$7:$F$15,2,FALSE),"") -> 25.67 | D86: fertilizer | E86: 16-4-8 | F86: starter fertilization | G86: 200 | H86: lb | I86: 5134 | J86: 50 | K86: lb | L86: 102.68 | M86: 105 | N86: $12.50 | O86: $1,312.50
C87: =IFERROR(VLOOKUP(B87:B182,info!$E$7:$F$15,2,FALSE),"") ->  | O87: 0
C88: =IFERROR(VLOOKUP(B88:B183,info!$E$7:$F$15,2,FALSE),"") ->  | O88: 0
C89: =IFERROR(VLOOKUP(B89:B184,info!$E$7:$F$15,2,FALSE),"") ->  | O89: 0
A90: december | C90: =IFERROR(VLOOKUP(B90:B185,info!$E$7:$F$15,2,FALSE),"") ->  | O90: 0
C91: =IFERROR(VLOOKUP(B91:B186,info!$E$7:$F$15,2,FALSE),"") ->  | O91: 0
C92: =IFERROR(VLOOKUP(B92:B187,info!$E$7:$F$15,2,FALSE),"") ->  | O92: 0
C93: =IFERROR(VLOOKUP(B93:B188,info!$E$7:$F$15,2,FALSE),"") ->  | O93: 0
A94: december | C94: =IFERROR(VLOOKUP(B94:B189,info!$E$7:$F$15,2,FALSE),"") ->  | O94: 0
C95: =IFERROR(VLOOKUP(B95:B190,info!$E$7:$F$15,2,FALSE),"") ->  | O95: 0
C96: =IFERROR(VLOOKUP(B96:B191,info!$E$7:$F$15,2,FALSE),"") ->  | O96: 0
C97: =IFERROR(VLOOKUP(B97:B192,info!$E$7:$F$15,2,FALSE),"") ->  | O97: 0
O101: =SUM(O2:O100) -> $112,299.50

Sheet practice (hidden)
A1: month | B1: sites | C1: acres | D1: app type | E1: product | F1: reason | G1: rate/acre | H1: unit | I1: app amount | J1: purchase package | K1: purchase unit | L1: purchase amount | M1: rounded | N1: cost per unit | O1: total cost
A2: january (1-15) | L2: =IFERROR(I2/J2, "") ->  | O2: =N2*M2 -> 0
L3: =IFERROR(I3/J3, "") ->  | O3: 0
O4: 0
O5: 0
A6: january (16-31) | O6: 0
O7: 0
O8: 0
O9: 0
A10: february | C10: =IFERROR(VLOOKUP(B10:B105,info!$E$7:$F$15,2,FALSE),"") ->  | I10: =IFERROR(C10*G10, " ") ->  | O10: 0
C11: =IFERROR(VLOOKUP(B11:B106,info!$E$7:$F$15,2,FALSE),"") ->  | O11: 0
C12: =IFERROR(VLOOKUP(B12:B107,info!$E$7:$F$15,2,FALSE),"") ->  | O12: 0
C13: =IFERROR(VLOOKUP(B13:B108,info!$E$7:$F$15,2,FALSE),"") ->  | O13: 0
A14: february | O14: 0
B15: all practice | C15: =IFERROR(VLOOKUP(B15:B110,info!$E$7:$F$15,2,FALSE),"") -> 32.44 | D15: herbicide w/fert | E15: 22-0-18 w/oxidiazon | F15: fert + crabgrass prevention | G15: 250 | H15: lb | I15: 8110 | J15: 50 | K15: lb | L15: 162.20 | M15: 165 | N15: $35.00 | O15: $5,775.00
C16: =IFERROR(VLOOKUP(B16:B111,info!$E$7:$F$15,2,FALSE),"") ->  | O16: 0
C17: =IFERROR(VLOOKUP(B17:B112,info!$E$7:$F$15,2,FALSE),"") ->  | O17: 0
A18: march | C18: =IFERROR(VLOOKUP(B18:B113,info!$E$7:$F$15,2,FALSE),"") ->  | O18: 0
C19: =IFERROR(VLOOKUP(B19:B114,info!$E$7:$F$15,2,FALSE),"") ->  | O19: 0
C20: =IFERROR(VLOOKUP(B20:B115,info!$E$7:$F$15,2,FALSE),"") ->  | O20: 0
C21: =IFERROR(VLOOKUP(B21:B116,info!$E$7:$F$15,2,FALSE),"") ->  | O21: 0
A22: march | B22: all practice | C22: =IFERROR(VLOOKUP(B22:B117,info!$E$7:$F$15,2,FALSE),"") -> 32.44 | D22: fertilizer | E22: 21-0-0 | F22: fertilization | G22: 250 | H22: lb | I22: 8110 | J22: 50 | K22: lb | L22: 162.20 | M22: 165 | N22: $15.00 | O22: $2,475.00
C23: =IFERROR(VLOOKUP(B23:B118,info!$E$7:$F$15,2,FALSE),"") ->  | O23: 0
C24: =IFERROR(VLOOKUP(B24:B119,info!$E$7:$F$15,2,FALSE),"") ->  | O24: 0
C25: =IFERROR(VLOOKUP(B25:B120,info!$E$7:$F$15,2,FALSE),"") ->  | O25: 0
A26: april | B26: all practice | C26: =IFERROR(VLOOKUP(B26:B121,info!$E$7:$F$15,2,FALSE),"") -> 32.44 | D26: aerification | E26: none | F26: dilute thatch | G26: 0 | I26: 0 | J26: 0 | N26: 0 | O26: 0
C27: =IFERROR(VLOOKUP(B27:B122,info!$E$7:$F$15,2,FALSE),"") ->  | O27: 0
C28: =IFERROR(VLOOKUP(B28:B123,info!$E$7:$F$15,2,FALSE),"") ->  | O28: 0
C29: =IFERROR(VLOOKUP(B29:B124,info!$E$7:$F$15,2,FALSE),"") ->  | O29: 0
A30: april | B30: all practice | C30: =IFERROR(VLOOKUP(B30:B125,info!$E$7:$F$15,2,FALSE),"") -> 32.44 | D30: fertilizer | E30: 21-0-0 | F30: fertilization | G30: 250 | H30: lb | I30: 8110 | J30: 50 | K30: lb | L30: 162.20 | M30: 165 | N30: $15.00 | O30: $2,475.00
C31: =IFERROR(VLOOKUP(B31:B126,info!$E$7:$F$15,2,FALSE),"") ->  | O31: 0
C32: =IFERROR(VLOOKUP(B32:B127,info!$E$7:$F$15,2,FALSE),"") ->  | O32: 0
C33: =IFERROR(VLOOKUP(B33:B128,info!$E$7:$F$15,2,FALSE),"") ->  | O33: 0
A34: may | B34: all practice | C34: =IFERROR(VLOOKUP(B34:B129,info!$E$7:$F$15,2,FALSE),"") -> 32.44 | D34: insecticide | E34: fipronil | F34: fire ants / mole crickets | G34: 80 | H34: lb | I34: 2595.2 | J34: 30 | K34: lb | L34: 86.51 | M34: 90 | N34: $59.50 | O34: $5,355.00
C35: =IFERROR(VLOOKUP(B35:B130,info!$E$7:$F$15,2,FALSE),"") ->  | O35: 0
C36: =IFERROR(VLOOKUP(B36:B131,info!$E$7:$F$15,2,FALSE),"") ->  | O36: 0
C37: =IFERROR(VLOOKUP(B37:B132,info!$E$7:$F$15,2,FALSE),"") ->  | O37: 0
A38: may | B38: all practice | C38: =IFERROR(VLOOKUP(B38:B133,info!$E$7:$F$15,2,FALSE),"") -> 32.44 | D38: herbicide | E38: certainty | F38: ryegrass / nutsedge | G38: 1.25 | H38: oz | I38: 40.55 | J38: 12.5 | K38: oz | L38: 3.24 | M38: 4 | N38: $850.00 | O38: $3,400.00
C39: =IFERROR(VLOOKUP(B39:B134,info!$E$7:$F$15,2,FALSE),"") ->  | O39: 0
C40: =IFERROR(VLOOKUP(B40:B135,info!$E$7:$F$15,2,FALSE),"") ->  | O40: 0
C41: =IFERROR(VLOOKUP(B41:B136,info!$E$7:$F$15,2,FALSE),"") ->  | O41: 0
A42: june | C42: =IFERROR(VLOOKUP(B42:B137,info!$E$7:$F$15,2,FALSE),"") ->  | O42: 0
C43: =IFERROR(VLOOKUP(B43:B138,info!$E$7:$F$15,2,FALSE),"") ->  | O43: 0
C44: =IFERROR(VLOOKUP(B44:B139,info!$E$7:$F$15,2,FALSE),"") ->  | O44: 0
C45: =IFERROR(VLOOKUP(B45:B140,info!$E$7:$F$15,2,FALSE),"") ->  | O45: 0
A46: june | B46: all practice | C46: =IFERROR(VLOOKUP(B46:B141,info!$E$7:$F$15,2,FALSE),"") -> 32.44 | D46: insecticide w/fert | E46: 21-14-14 w/acelepryn | F46: armyworm control | G46: 300 | H46: lb | I46: 9732 | J46: 50 | K46: lb | L46: 194.64 | M46: 200 | N46: $40.00 | O46: $8,000.00
C47: =IFERROR(VLOOKUP(B47:B142,info!$E$7:$F$15,2,FALSE),"") ->  | O47: 0
C48: =IFERROR(VLOOKUP(B48:B143,info!$E$7:$F$15,2,FALSE),"") ->  | O48: 0
C49: =IFERROR(VLOOKUP(B49:B144,info!$E$7:$F$15,2,FALSE),"") ->  | O49: 0
A50: july | B50: all practice | C50: =IFERROR(VLOOKUP(B50:B145,info!$E$7:$F$15,2,FALSE),"") -> 32.44 | D50: herbicide | E50: msma | F50: bahia / crab / dallis | G50: 80 | H50: oz | I50: 2595.2 | J50: 128 | K50: oz | L50: 20.28 | M50: 20 | N50: $23.00 | O50: $460.00
B51: all practice | C51: =IFERROR(VLOOKUP(B51:B146,info!$E$7:$F$15,2,FALSE),"") -> 32.44 | D51: herbicide | E51: trimec | F51: broadleaf | G51: 40 | H51: oz | I51: 1297.6 | J51: 128 | K51: oz | L51: 10.14 | M51: 10 | N51: $25.00 | O51: $250.00
C52: =IFERROR(VLOOKUP(B52:B147,info!$E$7:$F$15,2,FALSE),"") ->  | O52: 0
C53: =IFERROR(VLOOKUP(B53:B148,info!$E$7:$F$15,2,FALSE),"") ->  | O53: 0
A54: july | C54: =IFERROR(VLOOKUP(B54:B149,info!$E$7:$F$15,2,FALSE),"") ->  | O54: 0
C55: =IFERROR(VLOOKUP(B55:B150,info!$E$7:$F$15,2,FALSE),"") ->  | O55: 0
C56: =IFERROR(VLOOKUP(B56:B151,info!$E$7:$F$15,2,FALSE),"") ->  | O56: 0
C57: =IFERROR(VLOOKUP(B57:B152,info!$E$7:$F$15,2,FALSE),"") ->  | O57: 0
A58: august | C58: =IFERROR(VLOOKUP(B58:B153,info!$E$7:$F$15,2,FALSE),"") ->  | O58: 0
B59: all practice | C59: =IFERROR(VLOOKUP(B59:B154,info!$E$7:$F$15,2,FALSE),"") -> 32.44 | D59: aerification | E59: none | F59: drainage | G59: 0 | I59: 0 | J59: 0 | M59: 0 | N59: 0 | O59: 0
C60: =IFERROR(VLOOKUP(B60:B155,info!$E$7:$F$15,2,FALSE),"") ->  | O60: 0
C61: =IFERROR(VLOOKUP(B61:B156,info!$E$7:$F$15,2,FALSE),"") ->  | O61: 0
A62: august | B62: all practice | C62: =IFERROR(VLOOKUP(B62:B157,info!$E$7:$F$15,2,FALSE),"") -> 32.44 | D62: fertilizer | E62: 16-4-8 | F62: fertilization | G62: 200 | H62: lb | I62: 6488 | J62: 50 | K62: lb | L62: 129.76 | M62: 130 | N62: $12.50 | O62: $1,625.00
C63: =IFERROR(VLOOKUP(B63:B158,info!$E$7:$F$15,2,FALSE),"") ->  | O63: 0
C64: =IFERROR(VLOOKUP(B64:B159,info!$E$7:$F$15,2,FALSE),"") ->  | O64: 0
C65: =IFERROR(VLOOKUP(B65:B160,info!$E$7:$F$15,2,FALSE),"") ->  | O65: 0
A66: september | C66: =IFERROR(VLOOKUP(B66:B161,info!$E$7:$F$15,2,FALSE),"") ->  | I66: =IFERROR(C66*G66, " ") ->  | O66: =N66*M66 -> 0
C67: =IFERROR(VLOOKUP(B67:B162,info!$E$7:$F$15,2,FALSE),"") ->  | L67: =IFERROR(I67/J67, "") ->  | O67: 0
C68: =IFERROR(VLOOKUP(B68:B163,info!$E$7:$F$15,2,FALSE),"") ->  | O68: 0
C69: =IFERROR(VLOOKUP(B69:B164,info!$E$7:$F$15,2,FALSE),"") ->  | O69: 0
A70: september | B70: all practice | C70: =IFERROR(VLOOKUP(B70:B165,info!$E$7:$F$15,2,FALSE),"") -> 32.44 | D70: herbicide | E70: specticle | F70: winter weed control | G70: 6.5 | H70: oz | I70: 210.86 | J70: 18 | K70: oz | L70: 11.71 | M70: 13 | N70: $241.00 | O70: $3,133.00
C71: =IFERROR(VLOOKUP(B71:B166,info!$E$7:$F$15,2,FALSE),"") ->  | O71: 0
C72: =IFERROR(VLOOKUP(B72:B167,info!$E$7:$F$15,2,FALSE),"") ->  | O72: 0
C73: =IFERROR(VLOOKUP(B73:B168,info!$E$7:$F$15,2,FALSE),"") ->  | O73: 0
A74: october | C74: =IFERROR(VLOOKUP(B74:B169,info!$E$7:$F$15,2,FALSE),"") ->  | O74: 0
C75: =IFERROR(VLOOKUP(B75:B170,info!$E$7:$F$15,2,FALSE),"") ->  | O75: 0
C76: =IFERROR(VLOOKUP(B76:B171,info!$E$7:$F$15,2,FALSE),"") ->  | O76: 0
C77: =IFERROR(VLOOKUP(B77:B172,info!$E$7:$F$15,2,FALSE),"") ->  | O77: 0
A78: october | C78: =IFERROR(VLOOKUP(B78:B173,info!$E$7:$F$15,2,FALSE),"") ->  | O78: 0
C79: =IFERROR(VLOOKUP(B79:B174,info!$E$7:$F$15,2,FALSE),"") ->  | O79: 0
C80: =IFERROR(VLOOKUP(B80:B175,info!$E$7:$F$15,2,FALSE),"") ->  | O80: 0
C81: =IFERROR(VLOOKUP(B81:B176,info!$E$7:$F$15,2,FALSE),"") ->  | O81: 0
A82: november | C82: =IFERROR(VLOOKUP(B82:B177,info!$E$7:$F$15,2,FALSE),"") ->  | O82: 0
C83: =IFERROR(VLOOKUP(B83:B178,info!$E$7:$F$15,2,FALSE),"") ->  | O83: 0
C84: =IFERROR(VLOOKUP(B84:B179,info!$E$7:$F$15,2,FALSE),"") ->  | O84: 0
C85: =IFERROR(VLOOKUP(B85:B180,info!$E$7:$F$15,2,FALSE),"") ->  | O85: 0
A86: november | C86: =IFERROR(VLOOKUP(B86:B181,info!$E$7:$F$15,2,FALSE),"") ->  | O86: 0
C87: =IFERROR(VLOOKUP(B87:B182,info!$E$7:$F$15,2,FALSE),"") ->  | O87: 0
C88: =IFERROR(VLOOKUP(B88:B183,info!$E$7:$F$15,2,FALSE),"") ->  | O88: 0
C89: =IFERROR(VLOOKUP(B89:B184,info!$E$7:$F$15,2,FALSE),"") ->  | O89: 0
A90: december | B90: all practice | C90: =IFERROR(VLOOKUP(B90:B185,info!$E$7:$F$15,2,FALSE),"") -> 32.44 | D90: topdressing | E90: USGA spec sand | F90: dilute thatch | G90: 33 | H90: ton | I90: 1070.52 | J90: 66 | K90: ton | L90: 16.22 | M90: 18 | N90: $1,400.00 | O90: $25,200.00
C91: =IFERROR(VLOOKUP(B91:B186,info!$E$7:$F$15,2,FALSE),"") ->  | O91: 0
C92: =IFERROR(VLOOKUP(B92:B187,info!$E$7:$F$15,2,FALSE),"") ->  | O92: 0
C93: =IFERROR(VLOOKUP(B93:B188,info!$E$7:$F$15,2,FALSE),"") ->  | O93: 0
A94: december | C94: =IFERROR(VLOOKUP(B94:B189,info!$E$7:$F$15,2,FALSE),"") ->  | O94: 0
C95: =IFERROR(VLOOKUP(B95:B190,info!$E$7:$F$15,2,FALSE),"") ->  | O95: 0
C96: =IFERROR(VLOOKUP(B96:B191,info!$E$7:$F$15,2,FALSE),"") ->  | O96: 0
C97: =IFERROR(VLOOKUP(B97:B192,info!$E$7:$F$15,2,FALSE),"") ->  | O97: 0
O101: =SUM(O2:O100) -> $58,148.00

Sheet info (hidden)
L6: 1.3 | M6: 1.5
E7: baseball | F7: 20.07 | L7: 1.4 | M7: 1.2
E8: softball | F8: 5.6 | L8: 1.3 | M8: 1
E9: baseball & softball | F9: =F7+F8 -> 25.67 | L9: 2 | M9: 1.32
E10: football | F10: 17.41 | L10: 1 | M10: 2
E11: all competition | F11: =F9+F10 -> 43.08 | L11: 1.23 | M11: 1
E12: hs practice | F12: 15.27 | L12: 1 | M12: 1.8
E13: ms practice | F13: 17.17 | L13: 1.34 | M13: 1.1
E14: all practice | F14: =F12+F13 -> 32.44 | L14: 1.4 | M14: 1
L15: 1.54 | M15: 1
L16: 1.3 | M16: 1.45
L17: 1 | M17: 1
L18: 1 | M18: 1.8
L19: 1

Sheet totals (hidden)
A1: Item | B1: Reason | C1: Notes | D1: Amount | E1: Purchase Unit | F1: Price/Unit | G1: Totals
A3: Comp Fields | B3: See All Fields tab for details | G3: =competition!O101 -> $112,299.50
A4: Practice Fields | G4: =practice!O101 -> $58,148.00
A5: TOTAL | G5: =G3+G4 -> $170,447.50
A7: ADDITIONAL PRODUCTS - TO BE PURCHASED AS NEEDED
A8: Celsius | B8: Spot spray doveweed | D8: 80 | E8: ounces | F8: $10.00 | G8: =F8*D8 -> $800.00
A9: MSMA | B9: Spot spray crabgrass | D9: 10 | E9: gallons | F9: $25.00 | G9: =F9*D9 -> $250.00
A10: RoundUp | B10: Non-selective herbicide (infields) | D10: 20 | E10: gallons | F10: $20.00 | G10: $400.00
A11: Bifenthrin | B11: Spot insecticide | D11: 5 | E11: gallons | F11: $30.00 | G11: $150.00
A12: Revolver | B12: Alternate ryegrass spray out | C12: 87 oz jug* | D12: 10 | E12: 87 oz* | F12: $250.00 | G12: $2,500.00
A13: Subdue | B13: Spot treat pythium on overseed | D13: 2.5 | E13: gallons | F13: $375.00 | G13: $937.50
A14: Image | B14: Problem weeds in centipede | D14: 20 | E14: pounds | F14: $145.00 | G14: $2,900.00
A15: Triclopyr | B15: Woody plants | D15: 20 | E15: gallons | F15: $70.00 | G15: $1,400.00
A16: Top Choice | B16: Fire Ants | C16: 30 lb. bag* | D16: 50 | E16: 30 lb bag* | F16: $60.00 | G16: $3,000.00
A17: Fahrenheit | B17: Broad leaves | C17: 6 oz container* | D17: 78 | E17: ounces | F17: $5.00 | G17: $390.00
A18: Talpirid | B18: Mole control | C18: Box of 20 baits* | D18: 3 | E18: boxes | F18: $50.00 | G18: $150.00
A19: Trimec | B19: Broad leaves | D19: 10 | E19: gallons | F19: $25.00 | G19: $250.00
A20: TOTAL | G20: =SUM(G8:G19) -> $13,127.50
A22: MISC.
A23: Nitrile gloves | B23: Safety | D23: 5 | E23: box | F23: $20.00 | G23: =F23*D23 -> $100.00
A24: Blue dye | B24: Spray Indicator | D24: 4 | E24: quarts | F24: $15.00 | G24: =F24*D24 -> $60.00
A25: Foam marker | B25: Spray Indicator | D25: 8 | E25: quarts | F25: $20.00 | G25: $160.00
A26: Foam suppressor | B26: Tank additive | D26: 8 | E26: quarts | F26: $10.00 | G26: $80.00
A27: Tank Cleaner | B27: Cleaner | D27: 8 | E27: quarts | F27: $10.00 | G27: $80.00
A28: Microyl | B28: Adjuvant | D28: 10 | E28: gallons | F28: $32.00 | G28: $320.00
A29: Pen-A-Trate | B29: Adjuvant | D29: 10 | E29: gallons | F29: $30.00 | G29: $300.00
A30: Speed | B30: Adjuvant | D30: 10 | E30: gallons | F30: $70.00 | G30: $700.00
A31: TOTAL | G31: =SUM(G23:G30) -> $1,800.00
A34: CULTURAL
A35: Aerification Sand | D35: included in field tabs
A36: Rye Grass Seed | D36: incuded in field tabs
A37: Sod Repairs | C37: square foot | D37: 25000 | E37: sqft | F37: $0.40 | G37: =F37*D37 -> $10,000.00
A40: TESTING
A41: Soil Tests | B41: Assess nutrient levels | D41: 25 | G41: $1,000.00
I43: =157200+75000 -> $232,200.00
A44: Total ---> | G44: =G5+G20+G31+G37+G41 -> $196,375.00
A45: Cost per acre ---> | G45: =G44/45 -> $4,363.89 | H45: =I43-G44 -> $35,825.00
A47: ADDITIONAL IF NECESSARY
A48: Lime per acre | B48: Raise pH levels (1 acre) | D48: 500 lbs/acre | G48: $60.00
A49: Gypsum per acre | B49: Lower salt levels (1 acre) | D49: 800 lbs/acre | G49: $133.60

Sheet Fertilizers
A1: FERTILIZERS
A2: Name | B2: Size/Type | C2: Unit | D2: Annual Est. | E2: Can Supply as Requested | F2: Can Supply Alternate | G2: Alternate Description
A3: Uflexx Urea 46-0-0 | B3: fairway grade | C3: 50lb bag | D3: 12
A4: Umaxx Urea 46-0-0 | B4: fairway grade | C4: 50lb bag | D4: 155
A5: 22-0-18 w/oxidiazon | B5: fairway grade | C5: 50lb bag | D5: =220+165 -> 385
A6: 21-14-14 w/acelepryn (hot melt) | B6: fairway grade | C6: 50lb bag | D6: =275+200 -> 475
A7: 21-0-0 | B7: fairway grade | C7: 50lb bag | D7: =165+165 -> 330
A8: 16-4-8 | B8: fairway grade | C8: 50lb bag | D8: =105+130 -> 235
A9: 12-0-0 liquid, w/6% Fe & 3% Mn | B9: liquid | C9: gallon | D9: 16
A10: Cal Max G | B10: fairway grade | C10: 50 lb bag | D10: 600
A11: 0-0-7 Ronstar | B11: fairway grade | C11: 50lb bag | D11: 300

Sheet Pesticide, Chemicals
A1: PESTICIDES & CHEMICALS
A2: Type | B2: Trade Name | C2: Common Name | D2: Unit | E2: Annual Est. | F2: Can Supply as Requested | G2: Can Supply Alternate | H2: Alternate Description
A3: Fungicide | B3: Subdue | C3: mefanoxam | D3: gallon | E3: 2.5
A4: Growth Regulator | B4: Primo | C4: trinexapac-ethyl | D4: gallon | E4: 15
A5: Herbicide | B5: Celsius | C5: thiencarbazone + iodosulfuron + dicamba | D5: ounce | E5: 80
A6: Herbicide | B6: Certainty | C6: sulfosulfuron | D6: ounce | E6: 175
A7: Herbicide | B7: Fahrenheit | C7: metsulfuron + dicamba | D7: ounce | E7: =78+6 -> 84
A8: Herbicide | B8: Image | C8: imazaquin | D8: pound | E8: 20
A9: Herbicide | B9: MSMA | C9: monosodium methylarsonate | D9: gallon | E9: 75
A10: Herbicide | B10: Revolver | C10: foramsulfuron | D10: ounce | E10: =12*87 -> 1044
A11: Herbicide | B11: Round Up | C11: glyphosate | D11: gallon | E11: 20
A12: Herbicide | B12: Specticle | C12: indaziflam | D12: ounce | E12: 360
A13: Herbicide | B13: Tahoe | C13: triclopyr | D13: gallon | E13: 20
A14: Herbicide | B14: Trimec | C14: 2, 4-d + mecoprop + dicamba | D14: gallon | E14: 45
A15: Herbicide | B15: Xonerate | C15: amicarbazone | D15: ounce | E15: =2*(7*12) -> 168
A16: Insecticide | B16: Talpirid | C16: bromethalin | D16: 20 bait box | E16: 3
A17: Insecticide | B17: Talstar | C17: bifenthrin | D17: gallon | E17: 5
A18: Insecticide | B18: Top Choice | C18: fipronil | D18: 30 lb. bag | E18: =120+90+50 -> 260
A19: Misc. | B19: Blue dye | C19: n/a | D19: quart | E19: 4
A20: Misc. | B20: Foam marker | C20: n/a | D20: quart | E20: 8
A21: Misc. | B21: Foam suppressor | C21: n/a | D21: quart | E21: 8
A22: Misc. | B22: Tank Cleaner | C22: n/a | D22: quart | E22: 8
A23: Misc. | B23: Nitrile gloves | C23: n/a | D23: box | E23: 5
A24: Spray Adjuvant | B24: Microyl | C24: n/a | D24: gallon | E24: 10
A25: Spray Adjuvant | B25: Pen-A-Trate | C25: n/a | D25: gallon | E25: 10
A26: Spray Adjuvant | B26: Speed | C26: n/a | D26: gallon | E26: 10
A27: Growth Regulator | B27: Plateau | C27: Imazapic | D27: gallon | E27: 3
A28: Herbicide | B28: Kerb | C28: Pronamide | D28: Gallon | E28: 11
